fUSD/lending_fUSD_20260322
["ID","MTS","AMOUNT","RATE_DAILY","PERIOD"]
[408746314,1774188642354,-1000.0,0.00011821,2]
[408746315,1774188642363,-500.0,0.00011825,2]
[408746316,1774188642373,-200.0,0.00011914,2]
[408746317,1774188642383,-1000.0,0.00011921,2]
[408746318,1774188642393,-503.38189689,0.00011921,2]
[408746319,1774188642403,-500.7546073,0.00011921,2]
[408746320,1774188642413,-500.0,0.00011921,2]
[408746321,1774188642422,-548.6697218,0.00011921,2]
[408746322,1774188642432,-1003.83332292,0.00011921,2]
[408746323,1774188642446,-5000.0,0.00012003,2]
[408746324,1774188642456,-250.0,0.00012003,2]
[408746325,1774188642465,-300.0,0.00012029,2]
[408746326,1774188642475,-300.0,0.00012055,2]
[408746327,1774188642484,-193.0,0.00012055,2]
[408746328,1774188642494,-931.68491,0.00012055,2]
[408746329,1774188642503,-12736.149813,0.00012055,2]
[408746330,1774188642514,-500.0,0.00012099,2]
[408746331,1774188642523,-255.0,0.00012213,2]
[408746332,1774188642532,-23798.24311093,0.00012227,2]
[408746333,1774188642542,-420.0,0.00012266,2]
[408746334,1774188642551,-1500.0,0.00012268,2]
[408746335,1774188642560,-1500.0,0.00012268,2]
[408746336,1774188642570,-1680.0,0.0001228,2]
[408746337,1774188642579,-1877.51753042,0.00012283,2]
[408746338,1774188642589,-38822.3523141,0.00012301,2]
[408746339,1774188642599,-1293.698821,0.0001233,2]
[408746340,1774188642608,-160.03,0.00012354,2]
[408746341,1774188642617,-1277.04038587,0.00012368,2]
[408746342,1774188642626,-1512.96917258,0.00012368,2]
[408746343,1774188642636,-500.0,0.00012373,2]
[408746344,1774188642645,-998.78660713,0.00012445,2]
[408746345,1774188642655,-200.0,0.00012462,2]
[408746346,1774188642664,-500.63590136,0.00012468,2]
[408746347,1774188642673,-200.98,0.00012539,2]
[408746348,1774188642683,-325.13849609,0.00012549,2]
[408746349,1774188642692,-1062.0,0.00012557,2]
[408746350,1774188642702,-1186.0,0.00012582,2]
[408746352,1774188642712,-1309.0,0.00012607,2]
[408746354,1774188642721,-736.5327483,0.00012626,2]
[408746356,1774188642731,-785.0,0.00012632,2]
[408746358,1774188642740,-500.0,0.00012647,2]
[408746360,1774188642750,-690.0,0.00012657,2]
[408746362,1774188642759,-153.9051,0.000127,2]
[408746364,1774188642768,-150.0,0.00012728,2]
[408746366,1774188642777,-150.0,0.00012729,2]
[408746367,1774188642787,-221.769503,0.0001273,2]
[408746368,1774188642796,-23798.24311093,0.00012751,2]
[408746369,1774188642806,-38822.3523141,0.00012815,2]
[408746370,1774188642816,-2000.0,0.00012816,2]
[408746371,1774188642825,-2000.0,0.00012816,2]
[408746372,1774188642835,-325.362237,0.00012885,2]
[408746373,1774188642844,-2800.0,0.000129,4]
[408746374,1774188642854,-380.2779283,0.00012921,2]
[408746375,1774188642863,-250.0,0.00013,2]
[408746376,1774188642873,-160.03,0.00013004,2]
[408746377,1774188642883,-200.0,0.0001301,2]
[408746378,1774188642893,-210.363794,0.00013011,2]
[408746379,1774188642903,-160.0,0.00013063,2]
[408746380,1774188642913,-174.970315,0.00013063,2]
[408746381,1774188642922,-189.940631,0.00013063,2]
[408746382,1774188642932,-150.0,0.00013147,2]
[408746383,1774188642942,-287.468669,0.00013148,2]
[408746384,1774188642952,-23798.24311093,0.00013276,2]
[408746385,1774188642962,-38822.3523141,0.00013329,2]
[408746386,1774188642972,-150.0,0.00013361,2]
[408746387,1774188642987,-433.0,0.00013363,2]
[408746388,1774188642996,-1008.47953738,0.00013364,2]
[408746389,1774188643006,-1733.94746042,0.00013364,2]
[408746390,1774188643015,-600.0,0.00013426,2]
[408746391,1774188643027,-587.0,0.00013477,2]
[408746392,1774188643037,-154.0,0.00013485,3]
[408746393,1774188643046,-436.55744118,0.00013487,2]
[408746394,1774188643057,-838.98,0.000135,2]
[408746395,1774188643067,-734.11,0.000135,7]
[408746396,1774188643076,-524.37,0.000135,14]
[408746397,1774188643086,-2351.0,0.00013508,2]
[408746398,1774188643095,-200.0,0.00013558,2]
[408746399,1774188643105,-150.0,0.00013628,2]
[408746400,1774188643114,-160.03,0.00013654,2]
[408746401,1774188643122,-156.022,0.00013697,2]
[408746402,1774188643131,-500.0,0.00013698,2]
[408746403,1774188643142,-500.0,0.00013698,2]
[408746404,1774188643156,-500.0,0.00013698,2]
[408746406,1774188643166,-500.0,0.00013698,2]
[408746407,1774188643175,-500.0,0.00013698,2]
[408746408,1774188643184,-514.93719248,0.00013698,2]
[408746409,1774188643193,-544.94328698,0.00013698,2]
[408746410,1774188643203,-500.0,0.00013698,2]
[408746411,1774188643212,-500.0,0.00013698,2]
[408746412,1774188643222,-500.0,0.00013698,2]
[408746413,1774188643232,-500.0,0.00013698,2]
[408746414,1774188643241,-607.96438655,0.00013698,2]
[408746415,1774188643251,-500.0,0.00013698,2]
[408746416,1774188643260,-500.0,0.00013698,2]
[408746417,1774188643269,-500.0,0.00013698,2]
[408746419,1774188643279,-500.0,0.00013698,2]
[408746420,1774188643289,-500.0,0.00013698,2]
[408746421,1774188643299,-500.0,0.00013698,2]
[408746422,1774188643309,-500.0,0.00013698,2]
[408746423,1774188643317,-500.0,0.00013698,2]
[408746424,1774188643328,-500.0,0.00013698,2]
[408746425,1774188643338,-500.0,0.00013698,2]
[408746426,1774188643348,-500.0,0.00013698,2]
[408746427,1774188643358,-500.0,0.00013698,2]
[408746428,1774188643368,-500.0,0.00013698,2]
[408746429,1774188643379,-500.0,0.00013698,2]
[408746430,1774188643389,-500.0,0.00013698,2]
[408746431,1774188643398,-500.0,0.00013698,2]
[408746432,1774188643407,-500.0,0.00013698,2]
[408746433,1774188643418,-500.0,0.00013698,2]
[408746434,1774188643427,-500.0,0.00013698,2]
[408746435,1774188643439,-500.0,0.00013698,2]
[408746436,1774188643449,-500.0,0.00013698,2]
[408746437,1774188643458,-500.0,0.00013698,2]
[408746438,1774188643467,-500.0,0.00013698,2]
[408746439,1774188643477,-188.33807492,0.00013698,2]
[408746440,1774188643486,-500.0,0.00013698,2]
[408746441,1774188643495,-500.0,0.00013698,2]
[408746442,1774188643504,-500.0,0.00013698,2]
[408746443,1774188643514,-500.0,0.00013698,2]
[408746444,1774188643523,-500.0,0.00013698,2]
[408746445,1774188643532,-500.0,0.00013698,2]
[408746446,1774188643542,-500.0,0.00013698,2]
[408746447,1774188643551,-500.0,0.00013698,2]
[408746448,1774188643560,-500.0,0.00013698,2]
[408746449,1774188643570,-500.0,0.00013698,2]
[408746450,1774188643579,-500.0,0.00013698,2]
[408746451,1774188643588,-500.0,0.00013698,2]
[408746452,1774188643597,-500.0,0.00013698,2]
[408746453,1774188643607,-500.0,0.00013698,2]
[408746454,1774188643616,-500.0,0.00013698,2]
[408746455,1774188643626,-500.0,0.00013698,2]
[408746456,1774188643637,-500.0,0.00013698,2]
[408746457,1774188643647,-500.0,0.00013698,2]
[408746458,1774188643656,-500.0,0.00013698,2]
[408746459,1774188643665,-500.0,0.00013698,2]
[408746460,1774188643675,-500.0,0.00013698,2]
[408746461,1774188643684,-485.30482118,0.00013698,2]
[408746462,1774188643694,-500.0,0.00013698,2]
[408746463,1774188643703,-500.0,0.00013698,2]
[408746464,1774188643712,-500.0,0.00013698,2]
[408746465,1774188643722,-500.0,0.00013698,2]
[408746466,1774188643732,-500.0,0.00013698,2]
[408746467,1774188643741,-500.0,0.00013698,2]
[408746468,1774188643750,-500.0,0.00013698,2]
[408746469,1774188643760,-500.0,0.00013698,2]
[408746470,1774188643769,-500.0,0.00013698,2]
[408746471,1774188643778,-500.0,0.00013698,2]
[408746472,1774188643789,-390.47678169,0.00013698,2]
[408746473,1774188643799,-500.0,0.00013698,2]
[408746474,1774188643808,-500.0,0.00013698,2]
[408746475,1774188643819,-500.0,0.00013698,2]
[408746476,1774188643828,-500.0,0.00013698,2]
[408746477,1774188643838,-500.0,0.00013698,2]
[408746478,1774188643847,-500.0,0.00013698,2]
[408746479,1774188643856,-500.0,0.00013698,2]
[408746480,1774188643866,-500.0,0.00013698,2]
[408746481,1774188643875,-500.0,0.00013698,2]
[408746482,1774188643884,-500.0,0.00013698,2]
[408746483,1774188643894,-500.0,0.00013698,2]
[408746484,1774188643903,-500.0,0.00013698,2]
[408746485,1774188643912,-500.0,0.00013698,2]
[408746486,1774188643921,-500.0,0.00013698,2]
[408746487,1774188643931,-500.0,0.00013698,2]
[408746488,1774188643940,-500.0,0.00013698,2]
[408746489,1774188643950,-500.0,0.00013698,2]
[408746490,1774188643959,-500.0,0.00013698,2]
[408746491,1774188643968,-500.0,0.00013698,2]
[408746492,1774188643980,-500.0,0.00013698,2]
[408746493,1774188643990,-500.0,0.00013698,2]
[408746494,1774188644000,-500.0,0.00013698,2]
[408746495,1774188644010,-634.38,0.00013698,2]
[408746496,1774188644019,-521.23273696,0.00013698,2]
[408746497,1774188644031,-500.0,0.00013698,2]
[408746498,1774188644041,-500.0,0.00013698,2]
[408746499,1774188644050,-500.0,0.00013698,2]
[408746500,1774188644059,-500.0,0.00013698,2]
[408746501,1774188644069,-500.0,0.00013698,2]
[408746502,1774188644079,-500.0,0.00013698,2]
[408746503,1774188644088,-500.0,0.00013698,2]
[408746504,1774188644098,-526.80863898,0.00013698,2]
[408746505,1774188644107,-523.44,0.00013698,2]
[408746506,1774188644117,-523.44,0.00013698,2]
[408746507,1774188644126,-523.44,0.00013698,2]
[408746508,1774188644135,-523.44,0.00013698,2]
[408746509,1774188644145,-523.44,0.00013698,2]
[408746510,1774188644154,-523.44,0.00013698,2]
[408746511,1774188644164,-523.44,0.00013698,2]
[408746512,1774188644173,-523.44,0.00013698,2]
[408746513,1774188644182,-523.44,0.00013698,2]
[408746514,1774188644192,-523.44,0.00013698,2]
[408746515,1774188644201,-523.44,0.00013698,2]
[408746516,1774188644210,-500.0,0.00013698,2]
[408746517,1774188644219,-500.0,0.00013698,2]
[408746518,1774188644229,-500.0,0.00013698,2]
[408746519,1774188644240,-500.0,0.00013698,2]
[408746520,1774188644250,-500.0,0.00013698,2]
[408746521,1774188644259,-500.0,0.00013698,2]
[408746522,1774188644268,-500.0,0.00013698,2]
[408746523,1774188644277,-411.8232167,0.00013698,2]
[408746524,1774188644287,-2227.58,0.00013698,2]
[408746525,1774188644296,-2227.58,0.00013698,2]
[408746526,1774188644305,-2227.58,0.00013698,2]
[408746527,1774188644313,-2227.58,0.00013698,2]
[408746528,1774188644322,-2227.58,0.00013698,2]
[408746529,1774188644331,-500.0,0.00013698,2]
[408746530,1774188644340,-500.0,0.00013698,2]
[408746531,1774188644349,-500.0,0.00013698,2]
[408746532,1774188644358,-500.0,0.00013698,2]
[408746533,1774188644367,-500.0,0.00013698,2]
[408746534,1774188644376,-500.0,0.00013698,2]
[408746535,1774188644385,-500.0,0.00013698,2]
[408746536,1774188644394,-500.0,0.00013698,2]
[408746537,1774188644403,-500.0,0.00013698,2]
[408746538,1774188644412,-500.0,0.00013698,2]
[408746539,1774188644421,-500.0,0.00013698,2]
[408746540,1774188644430,-500.0,0.00013698,2]
[408746541,1774188644438,-500.0,0.00013698,2]
[408746542,1774188644447,-500.0,0.00013698,2]
[408746543,1774188644457,-500.0,0.00013698,2]
[408746544,1774188644466,-522.93,0.00013698,2]
[408746545,1774188644475,-522.93,0.00013698,2]
[408746546,1774188644484,-522.93,0.00013698,2]
[408746547,1774188644493,-522.93,0.00013698,2]
[408746548,1774188644502,-522.93,0.00013698,2]
[408746549,1774188644511,-500.0,0.00013698,2]
[408746550,1774188644520,-500.0,0.00013698,2]
[408746551,1774188644529,-500.0,0.00013698,2]
[408746552,1774188644538,-500.0,0.00013698,2]
[408746553,1774188644548,-500.0,0.00013698,2]
[408746554,1774188644558,-2671.13458251,0.00013698,2]
[408746555,1774188644567,-3162.80581936,0.00013698,2]
[408746556,1774188644900,-2222.8763441,0.00013698,2]
[408746557,1774188644910,-1046.8329771,0.00013698,2]
[408746558,1774188644920,-521.60337023,0.00013698,2]
[408746559,1774188644930,-500.0,0.00013698,2]
[408746560,1774188644939,-506.62310437,0.00013698,2]
[408746561,1774188644949,-500.0,0.00013698,2]
[408746562,1774188644959,-500.0,0.00013698,2]
[408746563,1774188644969,-500.0,0.00013698,2]
[408746564,1774188644981,-500.0,0.00013698,2]
[408746565,1774188644991,-500.0,0.00013698,2]
[408746566,1774188645001,-500.0,0.00013698,2]
[408746567,1774188645010,-500.0,0.00013698,2]
[408746568,1774188645021,-500.0,0.00013698,2]
[408746569,1774188645031,-500.0,0.00013698,2]
[408746570,1774188645041,-500.0,0.00013698,2]
[408746571,1774188645052,-500.0,0.00013698,2]
[408746572,1774188645062,-500.0,0.00013698,2]
[408746573,1774188645071,-500.0,0.00013698,2]
[408746574,1774188645081,-500.0,0.00013698,2]
[408746575,1774188645091,-500.0,0.00013698,2]
[408746576,1774188645101,-592.228816,0.00013698,2]
[408746577,1774188645110,-500.0,0.00013698,2]
[408746578,1774188645119,-500.0,0.00013698,2]
[408746579,1774188645129,-500.0,0.00013698,2]
[408746580,1774188645139,-500.0,0.00013698,2]
[408746581,1774188645148,-500.0,0.00013698,2]
[408746582,1774188645157,-500.0,0.00013698,2]
[408746583,1774188645167,-500.0,0.00013698,2]
[408746584,1774188645176,-500.0,0.00013698,2]
[408746585,1774188645185,-500.0,0.00013698,2]
[408746586,1774188645195,-207.8534478,0.00013698,2]
[408746587,1774188645205,-150.0,0.00013699,2]
[408746588,1774188645215,-150.0,0.00013699,2]
[408746589,1774188645225,-1665.27,0.00013699,2]
[408746590,1774188645234,-2066.11,0.00013699,2]
[408746591,1774188645245,-500.0,0.00013699,2]
[408746592,1774188645254,-500.43058459,0.00013699,2]
[408746593,1774188645264,-500.0,0.00013699,2]
[408746594,1774188645273,-500.74920901,0.00013699,2]
[408746595,1774188645282,-500.4848322,0.00013699,2]
[408746596,1774188645292,-500.0,0.00013699,2]
[408746597,1774188645301,-500.70382414,0.00013699,2]
[408746598,1774188645311,-500.0,0.00013699,2]
[408746599,1774188645320,-500.0,0.00013699,2]
[408746600,1774188645330,-500.0,0.00013699,2]
[408746601,1774188645340,-500.0,0.00013699,2]
[408746602,1774188645350,-500.55967201,0.00013699,2]
[408746603,1774188645361,-500.0,0.00013699,2]
[408746604,1774188645370,-500.0,0.00013699,2]
[408746605,1774188645380,-500.0,0.00013699,2]
[408746606,1774188645389,-390.12270077,0.00013699,2]
[408746607,1774188645400,-500.0,0.00013699,2]
[408746608,1774188645411,-500.0,0.00013699,2]
[408746609,1774188645420,-500.0,0.00013699,2]
[408746610,1774188645430,-500.0,0.00013699,2]
[408746611,1774188645440,-500.0,0.00013699,2]
[408746612,1774188645451,-500.0,0.00013699,2]
[408746613,1774188645460,-500.0,0.00013699,2]
[408746614,1774188645471,-500.44177829,0.00013699,2]
[408746615,1774188645480,-500.0,0.00013699,2]
[408746616,1774188645491,-1162.65,0.000137,2]
[408746617,1774188645502,-1685.88,0.000137,2]
[408746618,1774188645511,-2125.28,0.000137,2]
[408746619,1774188645521,-1885.27,0.000137,2]
[408746620,1774188645530,-2682.06,0.000137,2]
[408746621,1774188645541,-901.36,0.000137,2]
[408746622,1774188645552,-22100.26,0.000137,2]
[408746623,1774188645562,-22100.26,0.000137,2]
[408746624,1774188645571,-23798.24311093,0.00013801,2]
[408746625,1774188645581,-38822.3523141,0.00013844,2]
[408746626,1774188645591,-500.0,0.00013892,2]
[408746627,1774188645601,-166.66,0.00013972,2]
[408746628,1774188645611,-150.0,0.00013973,2]
[408746629,1774188645621,-523.44,0.00013989,2]
[408746630,1774188645634,-2227.58,0.00013989,2]
[408746631,1774188645644,-500.0,0.00013989,2]
[408746632,1774188645653,-500.0,0.00013989,2]
[408746633,1774188645662,-500.0,0.00013989,2]
[408746634,1774188645672,-522.93,0.00013989,2]
[408746635,1774188645682,-500.0,0.00013989,2]
[408746636,1774188645691,-303.97290395,0.00013989,2]
[408746637,1774188645701,-500.0,0.00013989,2]
[408746638,1774188645711,-500.0,0.00013989,2]
[408746639,1774188645720,-507.02157658,0.00013989,2]
[408746640,1774188645730,-157.9119,0.00014,2]
[408746641,1774188645740,-500.0,0.00014,2]
[408746642,1774188645749,-150.49957673,0.00014016,2]
[408746643,1774188645759,-150.0,0.00014029,2]
[408746644,1774188645768,-159.3427733,0.00014105,2]
[408746645,1774188645778,-500.0,0.00014105,2]
[408746646,1774188645787,-200.0,0.00014106,2]
[408746647,1774188645797,-60000.0,0.00014115,2]
[408746648,1774188645806,-150.0,0.00014247,2]
[408746649,1774188645815,-1000.0,0.00014247,2]
[408746650,1774188645825,-1000.0,0.00014247,2]
[408746651,1774188645834,-502.54227332,0.00014247,2]
[408746652,1774188645844,-1000.0,0.00014247,2]
[408746653,1774188645853,-1000.0,0.00014247,2]
[408746654,1774188645863,-1000.0,0.00014247,2]
[408746655,1774188645872,-1000.0,0.00014247,2]
[408746656,1774188645882,-1000.0,0.00014247,2]
[408746657,1774188645891,-998.52273734,0.00014247,2]
[408746658,1774188645901,-500.67270798,0.00014247,2]
[408746659,1774188645911,-1000.0,0.00014247,2]
[408746660,1774188645920,-505.99225948,0.00014247,2]
[408746661,1774188645929,-1000.0,0.00014247,2]
[408746662,1774188645938,-507.92423982,0.00014247,2]
[408746663,1774188645948,-803.0796662,0.00014247,2]
[408746664,1774188645958,-538.91632234,0.00014247,2]
[408746665,1774188645967,-386.59639692,0.00014258,2]
[408746666,1774188645980,-150.0,0.00014265,2]
[408746667,1774188645989,-150.0,0.00014267,2]
[408746668,1774188645999,-172.420745,0.00014268,2]
[408746669,1774188646008,-155.0,0.00014273,3]
[408746670,1774188646019,-160.03,0.00014304,2]
[408746671,1774188646028,-23798.24311093,0.00014326,2]
[408746672,1774188646038,-38822.3523141,0.00014358,2]
[408746673,1774188646048,-2066.11,0.00014384,2]
[408746674,1774188646058,-523.44,0.00014429,2]
[408746675,1774188646068,-2227.58,0.00014429,2]
[408746676,1774188646078,-500.0,0.00014429,2]
[408746677,1774188646088,-500.0,0.00014429,2]
[408746678,1774188646098,-500.0,0.00014429,2]
[408746679,1774188646107,-522.93,0.00014429,2]
[408746680,1774188646116,-500.0,0.00014429,2]
[408746681,1774188646126,-500.0,0.00014429,2]
[408746682,1774188646136,-500.0,0.00014429,2]
[408746683,1774188646145,-166.66,0.00014433,2]
[408746684,1774188646155,-1000.0,0.0001444,2]
[408746685,1774188646164,-250.0,0.00014449,2]
[408746686,1774188646174,-8721.36308748,0.00014477,2]
[408746688,1774188646183,-600.0,0.00014552,2]
[408746690,1774188646192,-150.0,0.00014584,2]
[408746692,1774188646201,-335.73,0.000146,2]
[408746694,1774188646210,-736.0,0.00014614,2]
[408746696,1774188646219,-223.615501,0.00014637,2]
[408746698,1774188646231,-200.0,0.00014654,2]
[408746700,1774188646241,-150.0,0.00014708,2]
[408746702,1774188646251,-500.0,0.0001471,2]
[408746704,1774188646260,-200.98,0.00014738,2]
[408746706,1774188646270,-2636.9562509,0.00014756,2]
[408746708,1774188646279,-195.30644904,0.00014756,2]
[408746710,1774188646289,-1500.0,0.00014795,2]
[408746712,1774188646299,-1158.78645597,0.00014795,2]
[408746713,1774188646308,-1500.0,0.00014795,2]
[408746714,1774188646318,-722.68518983,0.00014795,2]
[408746715,1774188646327,-1500.0,0.00014795,2]
[408746716,1774188646338,-419.75064279,0.00014795,2]
[408746717,1774188646348,-713.64434561,0.00014795,2]
[408746718,1774188646358,-823.0,0.00014807,2]
[408746719,1774188646367,-23798.24311093,0.0001485,2]
[408746720,1774188646376,-3292.0,0.00014859,2]
[408746721,1774188646388,-38822.3523141,0.00014872,2]
[408746722,1774188646397,-150.0,0.00014875,2]
[408746723,1774188646407,-166.66,0.00014895,2]
[408746724,1774188646417,-160.0,0.000149,2]
[408746725,1774188646428,-160.0,0.000149,2]
[408746726,1774188646438,-160.0,0.0001493,2]
[408746727,1774188646448,-979.16666667,0.0001493,2]
[408746728,1774188646458,-160.0,0.0001493,2]
[408746729,1774188646467,-160.0,0.0001493,2]
[408746730,1774188646476,-160.03,0.00014954,2]
[408746731,1774188646485,-1500.0,0.00014988,2]
[408746732,1774188646496,-300.0,0.00015,2]
[408746733,1774188646507,-150.0,0.00015003,2]
[408746734,1774188646517,-500.0,0.00015014,2]
[408746735,1774188646527,-155.0,0.00015067,2]
[408746736,1774188646537,-850.45,0.00015068,2]
[408746737,1774188646546,-2066.11,0.00015068,2]
[408746738,1774188646556,-381.45780892,0.0001507,2]
[408746739,1774188646565,-901.36,0.000151,2]
[408746740,1774188646575,-160.0,0.000151,2]
[408746741,1774188646585,-5550.0,0.00015146,2]
[408746742,1774188646595,-2682.06,0.000152,2]
[408746743,1774188646604,-217.73791025,0.00015202,2]
[408746744,1774188646614,-10000.0,0.00015205,2]
[408746745,1774188646624,-5878.89,0.00015218,2]
[408746746,1774188646634,-523.44,0.00015234,2]
[408746747,1774188646644,-5550.0,0.0001527,2]
[408746748,1774188646653,-162.023,0.000153,2]
[408746749,1774188646664,-150.0,0.00015313,2]
[408746750,1774188646675,-433.76,0.00015324,2]
[408746751,1774188646685,-440.91,0.00015328,2]
[408746752,1774188646694,-440.91,0.00015328,2]
[408746753,1774188646703,-1244.0069204,0.00015342,2]
[408746754,1774188646713,-1000.0,0.00015342,2]
[408746755,1774188646722,-166.66,0.00015356,2]
[408746756,1774188646732,-23798.24311093,0.00015375,2]
[408746757,1774188646742,-38822.3523141,0.00015386,2]
[408746758,1774188646753,-500.0,0.00015419,3]
[408746759,1774188646762,-150.0,0.00015444,2]
[408746760,1774188646773,-5550.0,0.00015489,2]
[408746761,1774188646782,-5550.0,0.00015533,2]
[408746762,1774188646791,-573.03260881,0.00015536,2]
[408746763,1774188646801,-289.12097407,0.00015556,2]
[408746764,1774188646810,-433.76,0.00015585,2]
[408746765,1774188646820,-1885.27,0.000156,2]
[408746766,1774188646829,-160.0,0.000156,3]
[408746767,1774188646839,-151.0,0.000156,2]
[408746768,1774188646849,-151.0,0.000156,3]
[408746769,1774188646858,-160.03,0.00015605,2]
[408746770,1774188646868,-487.75,0.00015664,30]
[408746771,1774188646878,-200.98,0.00015669,2]
[408746772,1774188646888,-656.138683,0.00015675,7]
[408746773,1774188646897,-438.79,0.00015677,2]
[408746774,1774188646907,-1685.88,0.000157,2]
[408746775,1774188646917,-433.76,0.00015715,2]
[408746776,1774188646926,-150.0,0.0001575,2]
[408746777,1774188646935,-437.88,0.00015751,2]
[408746778,1774188646945,-2066.11,0.00015753,2]
[408746779,1774188646955,-234.633446,0.00015783,2]
[408746780,1774188646964,-168.17,0.00015783,2]
[408746781,1774188646974,-168.17,0.00015783,2]
[408746782,1774188646987,-2125.28,0.000158,2]
[408746783,1774188646997,-3500.0,0.000158,5]
[408746784,1774188647006,-198.0,0.00015815,2]
[408746785,1774188647016,-166.66,0.00015817,2]
[408746786,1774188647028,-437.88,0.00015825,2]
[408746787,1774188647037,-2794.10845585,0.0001584,2]
[408746788,1774188647047,-433.78,0.00015846,2]
[408746789,1774188647057,-198.56640107,0.00015848,2]
[408746790,1774188647067,-362.49029944,0.00015848,2]
[408746791,1774188647076,-1665.27,0.00015862,2]
[408746792,1774188647084,-150.0,0.00015885,2]
[408746793,1774188647094,-2000.0,0.0001589,2]
[408746794,1774188647103,-523.44,0.00015899,2]
[408746795,1774188647112,-437.88,0.00015899,2]
[408746796,1774188647121,-10000.0,0.000159,2]
[408746797,1774188647131,-2227.58,0.000159,2]
[408746798,1774188647140,-500.0,0.000159,2]
[408746799,1774188647150,-500.0,0.000159,2]
[408746800,1774188647161,-500.0,0.000159,2]
[408746801,1774188647171,-522.93,0.000159,2]
[408746802,1774188647180,-500.0,0.000159,2]
[408746803,1774188647190,-500.0,0.000159,2]
[408746804,1774188647199,-23798.24311093,0.000159,2]
[408746805,1774188647208,-500.0,0.000159,2]
[408746806,1774188647218,-700.0,0.000159,5]
[408746807,1774188647382,-38822.3523141,0.000159,2]
[408746808,1774188647391,-436.55744118,0.000159,2]
[408746809,1774188647400,-400.0,0.00015945,2]
[408746810,1774188647409,-400.0,0.00015945,2]
[408746811,1774188647418,-400.0,0.00015945,2]
[408746812,1774188647427,-400.0,0.00015945,2]
[408746813,1774188647439,-303.3462059,0.00015945,2]
[408746814,1774188647448,-234773.8251344,0.00015946,2]
[408746815,1774188647458,-86773.3261805,0.0001596,2]
[408746816,1774188647467,-166.7669594,0.0001596,2]
[408746817,1774188647477,-3625.57747866,0.0001596,2]
[408746818,1774188647487,-129945.3985354,0.0001596,2]
[408746819,1774188647496,-347.47666717,0.00015973,2]
[408746820,1774188647505,-500.0,0.00015973,2]
[408746821,1774188647515,-500.0,0.00015973,2]
[408746822,1774188647524,-284.06409172,0.0001599,2]
[408746823,1774188647533,-284.06409172,0.0001599,2]
[408746824,1774188647542,-215.602758,0.00015997,2]
[408746825,1774188647552,-215.602758,0.00015997,2]
[408746826,1774188647561,-215.602758,0.00015997,2]
[408746827,1774188647570,-672.44576879,0.00015999,2]
[408746828,1774188647580,-666.0,0.00015999,2]
[408746829,1774188647589,-523.44,0.00015999,2]
[408746830,1774188647598,-523.44,0.00015999,2]
[408746831,1774188647607,-523.44,0.00015999,2]
[408746832,1774188647616,-523.44,0.00015999,2]
[408746833,1774188647626,-523.44,0.00015999,2]
[408746834,1774188647636,-523.44,0.00015999,2]
[408746835,1774188647645,-523.44,0.00015999,2]
[408746836,1774188647657,-523.44,0.00015999,2]